bitfinex-derivatives/quotes_ETHF0:USTF0_20250213
["timestamp","ask_amount","ask_price","bid_price","bid_amount"]
[1739472077748,0.06554758,2626.4,2626.2,3.2078]
[1739472077948,0.76128,2626.8,2626.2,3.96922]
[1739472078148,0.06555274,2626.7,2626.2,3.96922]
[1739472078348,0.06555274,2626.7,2626.2,3.2078]
[1739472078556,0.76128,2626.8,2626.2,3.2078]
[1739472078849,3.2078,2626.9,2626.3,0.7614]
[1739472079050,3.2078,2626.9,2626.4,0.00625245]
[1739472079051,0.76129,2626.8,2626.4,0.00625245]
[1739472079858,3.2078,2627.2,2626.5,3.2078]
[1739472080056,3.2078,2627.2,2626.8,3.2078]
[1739472080254,3.2078,2627.2,2626.8,3.96906]
[1739472080455,3.2078,2627.2,2626.8,3.2078]
[1739472080855,3.2078,2627.2,2626.8,3.96906]
[1739472081054,3.2078,2627.5,2626.8,3.2078]
[1739472081254,3.2078,2627.5,2626.7,3.96909]
[1739472081456,0.06556166,2627.4,2626.7,3.2078]
[1739472081663,0.76116,2627.2,2626.7,3.96908]
[1739472081962,0.76114,2627.3,2626.8,0.76126]
[1739472082160,3.2078,2627.5,2626.7,3.2078]
[1739472082358,3.2078,2627.8,2627.0,3.2078]
[1739472082558,0.76677885,2627.6,2627.1,3.2078]
[1739472082862,0.76677885,2627.6,2627.2,0.76114]
[1739472082863,0.00570885,2627.6,2627.2,0.76114]
[1739472083065,3.2078,2627.5,2626.8,0.8207]
[1739472083358,3.2078,2627.2,2626.8,0.8207]
[1739472083655,3.2078,2626.9,2626.5,0.8051]
[1739472084057,0.76136,2626.5,2626.4,0.00625245]
[1739472084564,0.82689137,2626.5,2626.4,0.00625245]
[1739472084763,3.2078,2626.6,2626.4,0.00625245]
[1739472084956,3.2078,2626.6,2626.4,0.76762245]
[1739472085158,3.2078,2626.6,2626.4,0.00625245]
[1739472085355,3.2078,2626.9,2626.4,0.00625245]
[1739472085763,3.2078,2626.9,2626.6,0.76131]
[1739472085965,3.2078,2626.9,2626.4,0.74765245]
[1739472086160,3.2078,2626.9,2626.6,0.76132]
[1739472086361,0.76114,2627.3,2626.8,0.76126]
[1739472086556,0.06555269,2627.2,2626.8,0.76125]
[1739472086763,3.2078,2627.5,2626.6,3.2078]
[1739472087059,0.76114,2627.3,2626.9,0.76124]
[1739472087264,3.2078,2627.5,2626.8,0.76126]
[1739472087569,3.2078,2627.5,2626.8,0.76124]
[1739472087570,0.76114,2627.3,2626.8,0.76124]
[1739472087860,0.00570885,2627.6,2626.9,3.2078]
[1739472087861,3.21350885,2627.6,2626.9,3.2078]
[1739472088066,0.0655557,2627.5,2627.2,3.96893]
[1739472088360,0.00570885,2627.6,2627.2,3.2078]
[1739472088561,0.06555399,2627.5,2627.2,3.96894]
[1739472088767,0.76676885,2627.6,2627.2,3.2078]
[1739472089063,0.00570885,2627.6,2627.5,0.76107]
[1739472089362,0.00570885,2627.6,2627.5,3.2078]
[1739472089665,0.00570885,2627.6,2627.2,3.2078]
[1739472090063,0.76109,2627.5,2627.2,3.2078]
[1739472090569,0.00570885,2627.6,2627.2,3.2078]
[1739472090763,0.00570885,2627.6,2626.9,0.7384]
[1739472091063,3.96891,2627.4,2626.9,1.49963]
[1739472091269,3.2078,2627.4,2626.9,0.7384]
[1739472091462,0.76112,2627.3,2626.9,1.49962]
[1739472091664,0.00570885,2627.6,2627.5,0.76107]
[1739472091971,0.00570885,2627.6,2627.5,3.2078]
[1739472092464,0.76107,2627.5,2627.4,0.7957]
[1739472092763,3.2078,2627.5,2626.9,3.9462]
[1739472092965,0.76117,2627.2,2626.9,3.9462]
[1739472093267,3.2078,2627.5,2626.9,3.9462]
[1739472094068,0.00570885,2627.6,2627.2,3.2078]
[1739472094471,0.00570885,2627.6,2626.9,0.7384]
[1739472094472,3.2078,2627.4,2626.9,0.7384]
[1739472094658,0.76121,2627.0,2626.9,0.7384]
[1739472094863,3.2078,2627.1,2626.5,0.7957]
[1739472095467,4.43224615,2627.3,2626.4,0.00625245]
[1739472095468,3.2078,2626.8,2626.4,0.00625245]
[1739472095664,0.76136,2626.5,2626.4,0.00625245]
[1739472095860,3.96916,2626.5,2626.4,0.00625245]
[1739472096060,8.40140615,2626.5,2626.4,0.00625245]
[1739472096564,14.40140615,2626.5,2626.4,0.00625245]
[1739472097069,8.97534008,2626.5,2626.4,0.00625245]
[1739472097470,4.54309393,2626.5,2626.4,0.00625245]
[1739472098077,3.2078,2626.5,2626.4,0.00625245]
[1739472098668,3.2078,2627.1,2626.4,0.00625245]
[1739472098976,0.06555607,2627.0,2626.4,0.00625245]
[1739472099473,0.76124,2626.9,2626.4,0.00625245]
[1739472099970,3.2078,2626.5,2626.4,0.00625245]
[1739472100169,3.96916,2626.5,2626.4,0.00625245]
[1739472100366,4.03470957,2626.5,2626.4,0.00625245]
[1739472100864,10.03471026,2626.5,2626.4,0.00625245]
[1739472101068,10.55175681,2626.5,2626.4,2.45e-06]
[1739472101364,10.60866168,2626.5,2626.4,2.45e-06]
[1739472101568,4.60866168,2626.5,2626.4,2.45e-06]
[1739472102067,3.84730168,2626.5,2626.4,2.45e-06]
[1739472102273,4.60866168,2626.5,2626.4,2.45e-06]
[1739472103370,3.84730168,2626.5,2626.4,2.45e-06]
[1739472103566,4.60866168,2626.5,2626.4,2.45e-06]
[1739472103767,0.57395142,2626.5,2626.4,2.45e-06]
[1739472103966,3.2078,2626.8,2626.4,2.45e-06]
[1739472104272,0.76136,2626.5,2626.4,2.45e-06]
[1739472104467,3.2078,2626.8,2626.4,2.45e-06]
[1739472104675,0.57395142,2626.7,2626.4,2.45e-06]
[1739472104870,0.76134,2626.6,2626.4,2.45e-06]
[1739472105071,0.57395142,2626.7,2626.4,2.45e-06]
[1739472105269,0.76134,2626.6,2626.4,2.45e-06]
[1739472105665,3.2078,2626.8,2626.4,2.45e-06]
[1739472106071,0.57472953,2627.2,2626.6,3.2078]
[1739472106271,0.76117,2627.2,2626.8,0.76127]
[1739472106468,0.58043838,2627.6,2626.9,3.2078]
[1739472106670,0.58043838,2627.6,2627.4,0.76109]
[1739472106876,0.58043838,2627.6,2627.5,0.8161]
[1739472107176,0.00570885,2627.6,2627.5,1.57717]
[1739472107365,0.76674885,2627.6,2627.5,0.8161]
[1739472107973,3.97454885,2627.6,2627.5,0.8161]
[1739472108176,0.76113,2627.3,2627.0,1.5046]
[1739472108378,0.76118,2627.1,2627.0,0.7411]
[1739472108677,3.2078,2627.2,2626.5,0.7386]
[1739472108979,0.76119,2627.1,2626.6,0.76131]
[1739472109274,3.2078,2627.2,2626.6,3.2078]
[1739472109476,0.00570885,2627.6,2627.1,3.2078]
[1739472109674,0.76111,2627.4,2627.0,3.2078]
[1739472109875,0.00570885,2627.6,2627.0,3.2078]
[1739472110071,0.00570885,2627.6,2626.5,2.2664]
[1739472110072,0.76128,2626.8,2626.5,5.4742]
[1739472110272,3.2078,2627.2,2626.5,5.4742]
[1739472110474,0.76126,2626.9,2626.5,5.4742]
[1739472110667,0.57463165,2627.1,2626.5,5.4742]
[1739472110875,3.2078,2626.7,2626.5,2.2664]
[1739472111083,0.76133,2626.6,2626.5,0.7628]
[1739472111779,0.76126,2626.9,2626.5,0.7628]
[1739472111969,3.96904,2627.0,2626.5,4.73195]
[1739472112170,3.2078,2627.5,2626.9,0.76124]
[1739472112372,0.06559332,2627.4,2626.8,3.2078]
[1739472112570,0.76114,2627.3,2626.8,3.2078]
[1739472112775,0.57438106,2627.4,2626.9,0.76124]
[1739472112975,0.57438106,2627.4,2627.0,0.7612]
[1739472113285,0.76109,2627.5,2627.1,3.2078]
[1739472113484,0.00570885,2627.6,2627.1,3.2078]
[1739472113684,0.06560341,2627.5,2627.1,3.2078]
[1739472113982,0.76111,2627.4,2627.1,3.2078]
[1739472114282,0.06560341,2627.5,2627.1,3.2078]
[1739472114283,0.76108,2627.5,2627.1,3.2078]
[1739472114485,0.76675885,2627.6,2627.1,3.2078]
[1739472114680,0.76109,2627.5,2627.1,3.2078]
[1739472114880,0.00570885,2627.6,2627.1,3.96896]
[1739472115079,0.00570885,2627.6,2627.1,3.2078]
[1739472115286,0.00570885,2627.6,2626.8,3.2078]
[1739472115473,3.2078,2627.4,2626.8,3.2078]
[1739472115675,0.00570885,2627.6,2627.1,3.2078]
[1739472115877,3.2078,2628.9,2627.5,3.2078]
[1739472116179,0.34035945,2629.5,2628.3,3.2078]
[1739472116180,0.06564971,2628.8,2628.3,3.2078]
[1739472116379,4.54314905,2628.9,2628.4,1.3469]
[1739472116575,3.2078,2628.9,2628.4,2.0685]
[1739472116783,3.96858,2628.5,2628.4,0.7216]
[1739472117075,3.96858,2628.5,2628.4,8.85e-06]
[1739472117076,4.60819475,2628.5,2628.4,8.85e-06]
[1739472117283,10.36408504,2628.5,2627.7,0.6801]
[1739472117586,3.2078,2628.2,2627.7,0.6801]
[1739472117784,0.06564985,2628.1,2627.7,0.6801]
[1739472117982,0.76098,2627.8,2627.7,0.6801]
[1739472118183,0.76099,2627.8,2627.3,0.7226]
[1739472118488,0.76104,2627.6,2627.5,0.00382452]
[1739472118678,3.27343521,2627.6,2626.8,3.2078]
[1739472118886,0.06563521,2627.5,2626.8,3.2078]
[1739472119186,3.2078,2627.3,2626.7,0.7226]
[1739472119393,3.96894,2627.3,2626.7,0.7226]
[1739472119689,0.0656216,2627.2,2626.7,0.7226]
[1739472119884,0.8267916,2627.2,2626.7,0.7226]
[1739472120087,3.21350885,2627.3,2626.7,0.7226]
[1739472120393,0.6394956,2627.2,2626.8,0.7117]
[1739472120688,0.06563357,2627.1,2626.8,0.7117]
[1739472120882,0.76136,2626.5,2626.4,2.45e-06]
[1739472121080,3.96916,2626.5,2626.4,2.45e-06]
[1739472121583,3.2078,2626.5,2626.4,2.45e-06]
[1739472122090,10.03480052,2626.5,2626.4,2.45e-06]
[1739472122291,11.12573481,2626.5,2626.4,2.45e-06]
[1739472122890,5.12573481,2626.5,2626.4,2.45e-06]
[1739472123996,4.36437481,2626.5,2626.4,2.45e-06]
[1739472124292,3.84747516,2626.5,2626.4,2.45e-06]
[1739472124685,4.60883516,2626.5,2626.4,2.45e-06]
[1739472125085,10.03480052,2626.5,2626.4,2.45e-06]
[1739472125283,10.55151155,2626.5,2626.4,2.45e-06]
[1739472125494,10.55150072,2626.5,2626.4,2.45e-06]
[1739472125696,0.76182,2624.9,2624.8,0.7024]
[1739472125892,3.27342969,2624.9,2624.3,0.7012]
[1739472126091,0.0656103,2624.8,2624.3,3.909]
[1739472126297,3.2078,2624.6,2624.0,3.2078]
[1739472127193,0.00570885,2624.9,2624.3,3.2078]
[1739472127586,3.2078,2624.7,2624.1,0.7012]
[1739472127791,3.2078,2624.7,2623.7,1.4036]
[1739472127792,0.76208,2624.1,2623.7,0.7024]
[1739472127989,3.2078,2624.1,2623.7,1.46455]
[1739472128191,3.2078,2624.4,2623.9,0.7621]
[1739472128495,3.2078,2624.7,2624.0,3.2078]
[1739472128691,3.9697,2624.7,2624.0,3.2078]
[1739472128892,3.9697,2624.7,2624.0,3.96987]
[1739472129088,3.2078,2624.7,2624.0,3.2078]
[1739472129397,0.06564973,2624.6,2624.0,3.2078]
[1739472129597,3.9697,2624.7,2624.1,0.76204]
[1739472129799,0.06566601,2624.6,2624.0,3.2078]
[1739472129990,3.2078,2624.3,2623.8,0.7012]
[1739472130190,0.76207,2624.1,2623.8,0.7012]
[1739472130390,3.2078,2624.3,2623.8,0.7012]
[1739472130693,3.96982,2624.3,2623.8,0.7012]
[1739472130902,3.2078,2624.3,2623.8,3.909]
[1739472131195,3.2078,2624.7,2623.8,3.909]
[1739472131389,3.2078,2624.7,2623.9,40.8]
[1739472131591,0.06572934,2624.6,2623.9,40.8]
[1739472131791,0.06572934,2624.6,2624.1,3.2078]
[1739472132094,0.76191,2624.6,2624.1,3.96985]
[1739472132285,3.2078,2624.7,2624.5,0.76193]
[1739472132488,3.2078,2624.7,2624.3,0.76198]
[1739472132684,3.2078,2624.7,2624.2,0.6583]
[1739472132886,3.96969,2624.7,2624.2,1.42031]
[1739472133093,3.2078,2624.7,2624.2,0.6583]
[1739472133495,3.2078,2624.4,2624.3,0.762]
[1739472133700,3.2078,2624.4,2623.9,40.8]
[1739472133701,0.76204,2624.2,2623.9,40.8]
[1739472133993,3.2078,2624.5,2623.8,0.7012]
[1739472134196,0.06570682,2624.4,2623.9,3.2078]
[1739472134402,3.2078,2624.5,2624.2,0.76201]
[1739472134599,0.00570885,2624.9,2624.2,3.2078]
[1739472134795,0.00570885,2624.9,2624.8,0.76185]
[1739472135001,0.00570885,2624.9,2624.6,3.2078]
[1739472135303,0.76161,2625.7,2625.2,0.76173]
[1739472135501,0.76161,2625.7,2625.5,3.2078]
[1739472135689,3.2078,2626.0,2625.5,3.2078]
[1739472136099,0.76155,2625.9,2625.6,1.3656]
[1739472136296,3.21350885,2626.0,2625.5,0.00570885]
[1739472136597,3.96942,2625.6,2625.5,0.00570885]
[1739472136805,4.03514546,2625.6,2625.5,0.00570885]
[1739472137000,0.82734546,2625.6,2625.5,0.00570885]
[1739472137197,0.76157,2625.8,2625.5,3.21350885]
[1739472137402,3.2078,2625.9,2625.5,3.21350885]
[1739472137797,0.7616,2625.7,2625.5,3.21350885]
[1739472138000,3.2078,2625.9,2625.5,0.00570885]
[1739472138203,0.76162,2625.7,2625.5,0.00570885]
[1739472138504,0.76157,2625.8,2625.5,0.00570885]
[1739472138707,3.2078,2625.9,2625.5,0.00570885]
[1739472139007,0.76162,2625.6,2625.5,0.00570885]
[1739472139308,3.2078,2625.9,2625.5,0.00570885]
[1739472139512,0.76162,2625.6,2625.5,0.00570885]
[1739472140007,0.82735881,2625.6,2625.5,0.00570885]
[1739472140206,0.06573881,2625.6,2625.5,0.00570885]
[1739472140397,3.2078,2625.9,2625.5,0.00570885]
[1739472140595,0.06574002,2625.8,2625.5,0.00570885]
[1739472140806,0.76159,2625.7,2625.5,0.00570885]
[1739472141009,3.2078,2625.9,2625.5,0.00570885]
[1739472141207,0.7616,2625.7,2625.5,0.00570885]
[1739472141401,3.2078,2625.9,2625.5,0.00570885]
[1739472141607,0.7616,2625.7,2625.5,0.00570885]
[1739472141808,3.2078,2625.9,2625.5,0.00570885]
[1739472142007,3.96935,2625.9,2625.5,3.21350885]
[1739472142201,3.2078,2625.9,2625.5,3.21350885]
[1739472142506,3.96942,2625.6,2625.5,0.00570885]
[1739472142703,4.03515461,2625.6,2625.5,0.00570885]
[1739472143514,4.03514916,2625.6,2625.5,0.00570885]
[1739472144806,10.03514916,2625.6,2625.5,8.85e-06]
[1739472145006,4.03514916,2625.6,2625.5,8.85e-06]
[1739472145211,4.03513858,2625.6,2625.5,8.85e-06]
[1739472146109,10.03513858,2625.6,2625.5,8.85e-06]
[1739472148910,3.27352634,2625.6,2625.5,8.85e-06]
[1739472149107,3.96942,2625.6,2625.5,8.85e-06]
[1739472149407,4.03514849,2625.6,2625.5,8.85e-06]
[1739472149617,3.2078,2625.6,2625.5,8.85e-06]
[1739472150206,3.21350885,2626.0,2625.5,8.85e-06]
[1739472150606,0.76156,2625.8,2625.5,8.85e-06]
[1739472150811,3.21350885,2626.0,2625.5,8.85e-06]
[1739472151018,3.97502885,2626.0,2625.5,8.85e-06]
[1739472151223,3.21350885,2626.0,2625.9,0.76153]
[1739472151518,0.57524836,2626.3,2625.5,5.11187885]
[1739472151519,0.57524836,2626.3,2625.8,3.2078]
[1739472151709,0.57524836,2626.3,2626.2,3.2078]
[1739472151910,0.76132,2626.7,2626.2,3.2078]
[1739472152211,3.2078,2626.8,2626.3,0.702]
[1739472152412,0.06575689,2626.7,2626.3,0.702]
[1739472152612,0.76137,2626.5,2626.3,0.702]
[1739472152912,3.96916,2626.5,2626.3,0.702]
[1739472153220,3.21350885,2626.8,2626.3,0.702]
[1739472153419,0.76137,2626.5,2626.3,0.702]
[1739472153721,0.76134,2626.6,2626.3,0.702]
[1739472153921,3.21350885,2626.8,2626.3,0.702]
[1739472154118,0.82708971,2626.7,2626.3,0.702]
[1739472154312,3.21350885,2626.8,2626.3,0.702]
[1739472154512,0.00570885,2626.8,2626.6,3.2078]
[1739472154718,0.00570885,2626.8,2626.7,0.6752]
[1739472154913,0.00570885,2626.8,2626.3,3.9098]
[1739472154914,0.07147853,2626.8,2626.3,3.9098]
[1739472155113,0.00570885,2626.8,2626.4,0.6752]
[1739472155414,0.00570885,2626.8,2626.4,1.43657]
[1739472155619,0.00570885,2626.8,2626.4,0.6752]
[1739472155821,0.76132,2626.7,2626.4,0.6752]
[1739472156018,0.00570885,2626.8,2626.4,0.6752]
[1739472156315,0.76134,2626.6,2626.4,0.6752]
[1739472156513,0.00570885,2626.8,2626.4,0.6752]
[1739472157015,0.00570885,2626.8,2626.5,0.76135]
[1739472157619,0.76698885,2626.8,2626.5,0.76136]
[1739472157821,0.00570885,2626.8,2626.7,0.7613]
[1739472158213,0.76112,2627.4,2626.6,3.2078]
[1739472158419,0.06577962,2627.3,2627.1,0.76118]
[1739472158621,0.76113,2627.3,2627.0,0.7612]
[1739472158924,0.76113,2627.3,2627.0,0.7135]
[1739472159123,3.2078,2627.5,2627.0,0.7135]
[1739472159325,0.76118,2627.1,2627.0,0.7135]
[1739472159513,0.76114,2627.3,2627.0,1.4747]
[1739472159717,0.00570885,2627.4,2627.1,0.76118]
[1739472159916,0.76118,2627.2,2627.0,0.7135]
[1739472160122,0.76118,2627.1,2627.0,0.7135]
[1739472160925,0.76121,2627.0,2626.9,0.00570885]
[1739472161321,0.82698939,2627.0,2626.9,0.00570885]
[1739472162223,0.76153,2625.9,2625.8,0.7123]
[1739472162430,3.2078,2626.1,2625.8,0.7123]
[1739472162625,0.06575297,2626.0,2625.8,4.68165]
[1739472162927,0.76145,2626.2,2625.8,3.9201]
[1739472163129,0.56129796,2626.3,2625.8,4.68166]
[1739472163328,0.06575356,2626.2,2625.8,3.9201]
[1739472163524,3.2078,2626.4,2625.8,3.9201]
[1739472163716,3.2078,2626.4,2626.0,0.76149]
[1739472163922,3.2078,2626.4,2626.0,0.76148]
[1739472164322,3.2078,2626.4,2625.9,0.6713]
[1739472164323,3.2078,2626.8,2626.2,3.2078]
[1739472164525,0.82705982,2626.7,2626.3,1.44851]
[1739472164722,0.76131,2626.7,2626.3,1.44851]
[1739472164921,0.76131,2626.7,2626.4,0.6927]
[1739472165118,3.2078,2626.8,2626.4,0.6927]
[1739472165622,0.76136,2626.5,2626.4,0.6927]
[1739472165930,3.2078,2626.8,2626.4,0.6927]
[1739472166229,0.76136,2626.5,2626.4,0.6927]
[1739472166425,3.96916,2626.5,2626.4,0.6927]
[1739472166618,0.7615,2626.1,2625.9,0.6713]
[1739472166825,3.76966246,2626.5,2625.9,0.6713]
[1739472167033,0.76143,2626.3,2625.9,1.43282]
[1739472167224,3.76966246,2626.5,2625.9,0.6713]
[1739472167523,3.2078,2626.9,2626.4,3.2078]
[1739472167728,0.06576293,2626.8,2626.5,1.4086]
[1739472167937,3.2078,2626.6,2625.7,0.00570885]
[1739472168121,3.96936,2625.8,2625.7,0.00570885]
[1739472168318,3.27354116,2625.8,2625.7,0.00570885]
[1739472168526,3.96936,2625.8,2625.7,0.00570885]
[1739472168724,3.2078,2625.8,2625.7,0.00570885]
[1739472168929,3.96936,2625.8,2625.7,0.00570885]
[1739472169124,3.27354004,2625.8,2625.7,0.00570885]
[1739472169428,3.2078,2625.8,2625.7,0.00570885]
[1739472169629,0.00570885,2626.0,2625.7,0.00570885]
[1739472169821,0.76721885,2626.0,2625.7,0.00570885]
[1739472170021,0.76721885,2626.0,2625.7,0.76729885]
[1739472170228,0.00570885,2626.0,2625.7,0.00570885]
[1739472170421,0.00570885,2626.0,2625.9,3.96933]
[1739472170822,0.5618928,2626.2,2626.1,0.76147]
[1739472171122,3.2078,2627.0,2625.9,4.5509]
[1739472171323,0.0657478,2626.9,2626.7,0.76129]
[1739472171523,0.0657478,2626.9,2626.4,3.2078]
[1739472172032,3.21350885,2626.9,2626.5,0.76135]
[1739472172233,3.21350885,2626.9,2626.3,3.2078]
[1739472172434,0.06575183,2626.8,2626.3,3.9692]
[1739472172624,0.06575183,2626.8,2626.3,3.2078]
[1739472173326,0.82703183,2626.8,2626.3,3.2078]
[1739472173520,0.76128,2626.8,2626.3,3.2078]
[1739472173726,3.21350885,2626.9,2626.3,3.2078]
[1739472173923,0.76137,2626.5,2626.3,3.2078]
[1739472174127,3.21350885,2626.9,2626.4,0.708]
[1739472174326,0.06574804,2626.8,2626.4,0.708]
[1739472174522,0.76136,2626.5,2626.4,0.708]
[1739472174736,3.21350885,2626.9,2626.4,0.708]
[1739472174929,0.06574901,2626.8,2626.4,0.708]
[1739472175330,3.97475885,2626.9,2626.6,0.76132]
[1739472175637,3.21350885,2626.9,2626.7,0.6564]
[1739472176336,3.97475885,2626.9,2626.7,0.6564]
[1739472176529,0.76127,2626.8,2626.7,0.6564]
[1739472176728,3.21350885,2626.9,2626.7,0.6564]
[1739472176934,0.76696885,2626.9,2626.7,0.6564]
[1739472177132,0.76127,2626.8,2626.7,0.6564]
[1739472177332,0.76697885,2626.9,2626.7,0.6564]
[1739472177531,0.00570885,2626.9,2626.4,0.708]
[1739472177836,0.76133,2626.6,2626.4,1.46937]
[1739472178729,0.7613,2626.8,2626.6,0.76133]
[1739472178931,0.76136,2626.5,2626.4,0.708]
[1739472179132,3.96916,2626.5,2626.4,0.708]
[1739472179331,0.76136,2626.5,2626.4,3.9158]
[1739472179739,0.51931262,2626.7,2626.4,3.9158]
[1739472179937,3.2078,2626.8,2626.4,3.9158]
[1739472180336,0.00570885,2626.9,2626.8,0.76127]
[1739472180527,0.00570885,2626.9,2626.4,3.9158]
[1739472180733,0.76133,2626.6,2626.4,1.46937]
[1739472180931,1.90883885,2626.9,2626.4,1.46937]
[1739472180932,0.76136,2626.5,2626.4,0.708]
[1739472181432,0.76146,2626.2,2625.9,3.8988]
[1739472181741,0.76145,2626.2,2626.1,3.2078]
[1739472182236,0.76147,2626.1,2626.0,1.3833]
[1739472182433,0.76147,2626.2,2626.0,1.3833]
[1739472182634,1.07079678,2626.3,2626.0,1.3833]
[1739472182635,1.07079678,2626.3,2626.0,2.1448]
[1739472182832,0.76145,2626.2,2626.0,1.3833]
[1739472183140,0.55137369,2626.3,2626.2,0.76145]
[1739472183348,0.55137369,2626.3,2626.0,1.3833]
[1739472183349,0.76147,2626.1,2626.0,1.3833]
[1739472184034,3.2078,2626.4,2626.0,1.3833]
[1739472184239,0.55137369,2626.3,2626.0,1.3833]
[1739472184429,0.55137369,2626.3,2626.2,3.96925]
[1739472184841,1.31834254,2626.9,2626.2,9.2078]
[1739472185039,0.55708254,2626.9,2626.5,3.2078]
[1739472185237,0.55708254,2626.9,2626.6,3.8569]
[1739472185634,3.76488254,2626.9,2626.1,3.2078]
[1739472185839,0.76143,2626.3,2626.2,40.8]
[1739472186138,3.21350885,2626.9,2626.2,40.8]
[1739472186340,0.76145,2626.2,2626.1,0.6491]
[1739472186535,4.04926826,2626.8,2626.1,0.6491]
[1739472186536,1.9034,2626.6,2626.1,0.6491]
[1739472186736,0.76143,2626.3,2626.1,1.41056]
[1739472186936,0.76145,2626.2,2626.1,0.6491]
[1739472187140,3.2078,2626.4,2626.0,0.6865]
[1739472187345,3.96927,2626.1,2626.0,0.6865]
[1739472187645,0.76156,2625.8,2625.7,0.00570885]
[1739472188542,0.55127681,2626.0,2625.7,0.00570885]
[1739472188935,0.76154,2625.9,2625.7,0.76729885]
[1739472189136,0.76156,2625.8,2625.7,0.00570885]
[1739472189434,0.55127681,2626.0,2625.7,0.00570885]
[1739472189835,0.55127681,2626.1,2625.9,3.2078]
[1739472190035,1.31277681,2626.1,2626.0,3.2078]
[1739472190235,0.76156,2625.8,2625.7,0.00570885]
[1739472190440,3.96936,2625.8,2625.7,0.00570885]
[1739472190743,4.03511543,2625.8,2625.7,0.00570885]
[1739472190944,5.10617659,2625.8,2625.7,0.00570885]
[1739472192942,5.04042116,2625.8,2625.7,0.00570885]
[1739472193238,5.10617693,2625.8,2625.7,0.00273429]
[1739472193941,1.13681693,2625.8,2625.7,0.00273429]
[1739472194137,0.55127681,2625.8,2625.7,0.00273429]
[1739472194337,1.31283681,2625.8,2625.7,0.00273429]
[1739472194540,1.34709864,2625.8,2625.7,0.00273429]
[1739472195044,5.10617545,2625.8,2625.7,0.00273429]
[1739472196447,4.5863911,2625.8,2625.7,0.00273429]
[1739472196644,5.10552526,2625.8,2625.7,0.00273429]
[1739472197140,4.5864024,2625.8,2625.7,0.00273429]
[1739472197848,0.6170424,2625.8,2625.7,0.00273429]
[1739472198140,1.31283681,2625.8,2625.7,0.00273429]
[1739472198345,1.07036324,2626.1,2625.7,0.00273429]
[1739472198546,0.06577423,2626.0,2625.7,0.00273429]
[1739472198944,0.76156,2625.8,2625.7,0.00273429]
[1739472199546,4.03512933,2625.8,2625.7,0.00273429]
[1739472200048,0.55127681,2625.8,2625.7,0.00273429]
[1739472200348,0.76156,2625.8,2625.7,0.00273429]
[1739472200642,0.55127681,2626.1,2625.7,0.00273429]
[1739472200944,0.06578487,2626.0,2625.7,0.00273429]
[1739472201141,0.76156,2625.8,2625.7,0.67113429]
[1739472201344,0.82735843,2625.8,2625.7,0.00273429]
[1739472201745,1.89800889,2625.8,2625.7,0.00273429]
[1739472202054,7.136438,2625.8,2624.3,3.2078]
[1739472202341,3.96968,2624.7,2624.6,1.65985]
[1739472202546,8.01897718,2624.7,2624.6,1e-05]
[1739472202745,1.90485,2624.6,2623.7,0.6695]
[1739472202941,3.2078,2624.3,2623.7,0.6695]
[1739472203149,0.76205,2624.2,2623.7,0.67520885]
[1739472203443,3.2078,2624.0,2623.7,0.67520885]
[1739472203746,3.2078,2624.0,2623.7,0.00570885]
[1739472204042,0.76213,2623.9,2623.7,0.00570885]
[1739472204242,0.76214,2623.8,2623.7,0.00570885]
[1739472204444,0.82791732,2623.8,2623.7,0.00570885]
[1739472204843,0.06577732,2623.8,2623.7,0.00570885]
[1739472205044,3.2078,2624.0,2623.7,0.00570885]
[1739472205245,0.76214,2623.8,2623.7,0.00570885]
[1739472205442,0.82792902,2623.8,2623.7,0.00570885]
[1739472205642,0.06579044,2623.8,2623.7,0.00570885]
[1739472205845,3.2078,2624.0,2623.7,0.00570885]
[1739472205846,3.96991,2624.0,2623.7,0.00570885]
[1739472206044,0.82791936,2623.9,2623.7,0.00570885]
[1739472206350,3.2078,2624.0,2623.7,0.00570885]
[1739472206954,0.76214,2623.8,2623.7,0.00570885]
[1739472207249,3.2078,2624.0,2623.7,0.00570885]
[1739472207451,0.76214,2623.8,2623.7,0.00570885]
[1739472207750,4.8114941,2623.8,2623.7,0.00570885]
[1739472209045,4.81151697,2623.8,2623.7,0.00570885]
[1739472209244,4.04937697,2623.8,2623.7,0.00570885]
[1739472209546,4.81151697,2623.8,2623.7,0.00570885]
[1739472211439,4.04937697,2623.8,2623.7,0.00570885]
[1739472211641,4.81151697,2623.8,2623.7,0.00570885]
[1739472212744,4.74565928,2623.8,2623.7,0.00570885]
[1739472212953,4.8115549,2623.8,2623.7,0.00570885]
[1739472213151,0.06589562,2623.8,2623.7,0.00570885]
[1739472213454,3.96989,2624.0,2623.7,0.00570885]
[1739472213855,3.98351928,2624.1,2623.7,0.00570885]
[1739472214043,0.7621,2624.0,2623.7,0.00570885]
[1739472214248,3.98351928,2624.1,2623.7,0.00570885]
[1739472214550,3.98351928,2624.1,2623.7,0.76785885]
[1739472214951,3.2078,2624.0,2623.7,0.00570885]
[1739472215149,4.74565928,2623.8,2623.7,0.00570885]
[1739472215348,4.81154232,2623.8,2623.7,0.00570885]
[1739472215848,3.20779115,2623.6,2622.7,0.6701]
[1739472216147,1.90654,2622.2,2621.2,3.2078]
[1739472216450,3.98351928,2621.8,2621.5,0.6658]
[1739472216641,0.76278,2621.6,2621.5,0.6658]
[1739472216848,3.98351928,2621.8,2621.5,0.6658]
[1739472217046,3.98923912,2621.8,2621.5,0.6658]
[1739472217242,0.00571984,2621.8,2621.7,3.97055]
[1739472217444,7.19131928,2623.0,2621.9,1.90674]
[1739472217649,7.19131928,2623.0,2621.5,8.57283]
[1739472217650,3.2078,2622.5,2622.1,3.2078]
[1739472217849,3.97033,2622.5,2621.8,0.7627]
[1739472218051,3.2078,2622.2,2621.5,0.67151984]
[1739472218250,3.2078,2621.6,2621.5,0.67151984]
[1739472218452,3.2078,2621.6,2621.5,0.00571984]
[1739472218650,0.00571984,2621.8,2621.5,0.00571984]
[1739472218954,0.00571984,2621.8,2621.6,0.76277]
[1739472219255,1.90608,2622.9,2621.5,0.00571984]
[1739472219256,3.2078,2622.6,2621.7,3.2078]
[1739472219655,0.76254,2622.5,2621.6,3.2078]